fUST/lending_fUST_20240815
["ID","MTS","AMOUNT","RATE_DAILY","PERIOD"]
[334973748,1723701041945,-500.0,0.00013698,2]
[334973749,1723701041955,-183.704552,0.00013698,2]
[334973750,1723701041964,-183.704552,0.00013698,2]
[334973751,1723701041973,-183.704552,0.00013698,2]
[334973752,1723701041983,-183.704552,0.00013698,2]
[334973753,1723701041993,-183.704552,0.00013698,2]
[334973754,1723701042003,-783.43,0.00013698,2]
[334973755,1723701042014,-183.704552,0.00013698,2]
[334973756,1723701042024,-183.704552,0.00013698,2]
[334973757,1723701042035,-183.704552,0.00013698,2]
[334973758,1723701042045,-183.704552,0.00013698,2]
[334973759,1723701042054,-183.704552,0.00013698,2]
[334973760,1723701042065,-500.0,0.00013698,2]
[334973761,1723701042075,-183.704552,0.00013698,2]
[334973762,1723701042089,-183.704552,0.00013698,2]
[334973763,1723701042098,-183.704552,0.00013698,2]
[334973764,1723701042108,-183.704552,0.00013698,2]
[334973765,1723701042117,-183.704552,0.00013698,2]
[334973766,1723701042126,-183.704552,0.00013698,2]
[334973767,1723701042136,-503.67030436,0.00013698,2]
[334973768,1723701042146,-803.44,0.00013698,2]
[334973769,1723701042157,-183.704552,0.00013698,2]
[334973770,1723701042167,-183.704552,0.00013698,2]
[334973771,1723701042176,-183.704544,0.00013698,2]
[334973772,1723701042186,-500.0,0.00013698,2]
[334973773,1723701042196,-500.0,0.00013698,2]
[334973774,1723701042206,-500.0,0.00013698,2]
[334973775,1723701042215,-841.28,0.00013698,2]
[334973776,1723701042225,-500.0,0.00013698,2]
[334973777,1723701042235,-500.0,0.00013698,2]
[334973778,1723701042244,-1114.07,0.00013698,2]
[334973779,1723701042254,-500.0,0.00013698,2]
[334973780,1723701042264,-513.39,0.00013698,2]
[334973781,1723701042273,-501.71323028,0.00013698,2]
[334973782,1723701042282,-500.0,0.00013698,2]
[334973783,1723701042292,-500.0,0.00013698,2]
[334973784,1723701042301,-501.9423357,0.00013698,2]
[334973785,1723701042311,-709.69,0.00013698,2]
[334973786,1723701042322,-503.57426429,0.00013698,2]
[334973787,1723701042331,-634.69,0.00013698,2]
[334973788,1723701042341,-794.38,0.00013698,2]
[334973789,1723701042351,-501.77917856,0.00013698,2]
[334973790,1723701042361,-500.0,0.00013698,2]
[334973791,1723701042370,-242.64882633,0.00013698,2]
[334973792,1723701042379,-598.9,0.00013698,2]
[334973793,1723701042389,-500.0,0.00013698,2]
[334973794,1723701042399,-500.0,0.00013698,2]
[334973795,1723701042408,-500.0,0.00013698,2]
[334973796,1723701042418,-697.8,0.00013698,2]
[334973797,1723701042428,-500.0,0.00013698,2]
[334973798,1723701042438,-500.0,0.00013698,2]
[334973799,1723701042450,-236.738736,0.00013698,2]
[334973800,1723701042460,-151.0,0.00013698,2]
[334973801,1723701042469,-246.354478,0.00013698,2]
[334973802,1723701042479,-587.45955749,0.00013698,2]
[334973803,1723701042489,-500.0,0.00013698,2]
[334973804,1723701042499,-505.8766394,0.00013698,2]
[334973805,1723701042508,-522.53242033,0.00013698,2]
[334973806,1723701042518,-581.33432109,0.00013698,2]
[334973807,1723701042527,-540.77408739,0.00013698,2]
[334973808,1723701042537,-500.0,0.00013698,2]
[334973809,1723701042547,-641.12,0.00013698,2]
[334973810,1723701042556,-500.0,0.00013698,2]
[334973811,1723701042566,-504.01468692,0.00013698,2]
[334973812,1723701042576,-500.0,0.00013698,2]
[334973813,1723701042585,-505.06081033,0.00013698,2]
[334973814,1723701042594,-500.0,0.00013698,2]
[334973815,1723701042603,-151.0,0.00013698,2]
[334973816,1723701042613,-151.0,0.00013698,2]
[334973817,1723701042622,-151.0,0.00013698,2]
[334973818,1723701042631,-151.0,0.00013698,2]
[334973819,1723701042640,-151.0,0.00013698,2]
[334973820,1723701042650,-583.67,0.00013698,2]
[334973821,1723701042659,-151.0,0.00013698,2]
[334973822,1723701042668,-151.0,0.00013698,2]
[334973823,1723701042678,-500.0,0.00013698,2]
[334973824,1723701042688,-151.0,0.00013698,2]
[334973825,1723701042698,-151.0,0.00013698,2]
[334973826,1723701042708,-500.0,0.00013698,2]
[334973827,1723701042718,-151.0,0.00013698,2]
[334973828,1723701042728,-151.0,0.00013698,2]
[334973829,1723701042738,-151.0,0.00013698,2]
[334973830,1723701042748,-151.0,0.00013698,2]
[334973831,1723701042758,-198.826445,0.00013698,2]
[334973832,1723701042767,-500.0,0.00013698,2]
[334973833,1723701042777,-500.0,0.00013698,2]
[334973834,1723701042786,-501.32324657,0.00013698,2]
[334973835,1723701042796,-873.33,0.00013698,2]
[334973836,1723701042806,-502.04891473,0.00013698,2]
[334973837,1723701042816,-632.77,0.00013698,2]
[334973838,1723701042825,-500.0,0.00013698,2]
[334973839,1723701042835,-151.0,0.00013698,2]
[334973840,1723701042844,-262.563636,0.00013698,2]
[334973841,1723701042854,-848.36,0.00013698,2]
[334973842,1723701042863,-500.0,0.00013698,2]
[334973843,1723701042872,-500.0,0.00013698,2]
[334973844,1723701042882,-371.62552817,0.00013698,2]
[334973845,1723701042891,-582.15,0.00013698,2]
[334973846,1723701042901,-500.0,0.00013698,2]
[334973847,1723701042911,-501.22561788,0.00013698,2]
[334973848,1723701042921,-863.93,0.00013698,2]
[334973849,1723701042931,-531.41,0.00013698,2]
[334973850,1723701042941,-151.0,0.00013698,2]
[334973851,1723701042950,-151.0,0.00013698,2]
[334973852,1723701042960,-151.0,0.00013698,2]
[334973853,1723701042970,-500.0,0.00013698,2]
[334973854,1723701042980,-500.0,0.00013698,2]
[334973856,1723701042990,-500.0,0.00013698,2]
[334973858,1723701043000,-514.60173343,0.00013698,2]
[334973859,1723701043010,-527.02751034,0.00013698,2]
[334973860,1723701043020,-500.0,0.00013698,2]
[334973861,1723701043030,-505.38067726,0.00013698,2]
[334973862,1723701043039,-501.88697596,0.00013698,2]
[334973863,1723701043049,-500.0,0.00013698,2]
[334973864,1723701043059,-502.7303861,0.00013698,2]
[334973865,1723701043070,-500.0,0.00013698,2]
[334973866,1723701043081,-500.0,0.00013698,2]
[334973867,1723701043092,-500.0,0.00013698,2]
[334973868,1723701043102,-507.04648029,0.00013698,2]
[334973869,1723701043112,-582.87,0.00013698,2]
[334973870,1723701043123,-731.93,0.00013698,2]
[334973871,1723701043133,-501.8802159,0.00013698,2]
[334973872,1723701043142,-630.66,0.00013698,2]
[334973873,1723701043152,-500.0,0.00013698,2]
[334973875,1723701043163,-502.1522931,0.00013698,2]
[334973876,1723701043173,-500.0,0.00013698,2]
[334973877,1723701043183,-500.0,0.00013698,2]
[334973878,1723701043192,-500.0,0.00013698,2]
[334973879,1723701043203,-726.05,0.00013698,2]
[334973880,1723701043212,-726.05,0.00013698,2]
[334973881,1723701043222,-726.05,0.00013698,2]
[334973882,1723701043232,-726.05,0.00013698,2]
[334973883,1723701043242,-500.0,0.00013698,2]
[334973884,1723701043252,-726.05,0.00013698,2]
[334973885,1723701043262,-726.05,0.00013698,2]
[334973886,1723701043271,-726.05,0.00013698,2]
[334973887,1723701043280,-726.05,0.00013698,2]
[334973888,1723701043290,-500.0,0.00013698,2]
[334973889,1723701043299,-726.05,0.00013698,2]
[334973890,1723701043309,-180.877783,0.00013698,2]
[334973891,1723701043320,-726.05,0.00013698,2]
[334973892,1723701043330,-180.877783,0.00013698,2]
[334973893,1723701043339,-726.05,0.00013698,2]
[334973894,1723701043349,-500.0,0.00013698,2]
[334973895,1723701043358,-180.877783,0.00013698,2]
[334973896,1723701043367,-726.05,0.00013698,2]
[334973897,1723701043376,-180.877783,0.00013698,2]
[334973898,1723701043385,-726.05,0.00013698,2]
[334973900,1723701043395,-726.05,0.00013698,2]
[334973902,1723701043405,-180.877783,0.00013698,2]
[334973904,1723701043414,-726.05,0.00013698,2]
[334973905,1723701043425,-180.877783,0.00013698,2]
[334973908,1723701043438,-726.05,0.00013698,2]
[334973912,1723701043449,-180.877783,0.00013698,2]
[334973916,1723701043460,-726.05,0.00013698,2]
[334973919,1723701043470,-180.877783,0.00013698,2]
[334973921,1723701043480,-180.877783,0.00013698,2]
[334973924,1723701043491,-180.877783,0.00013698,2]
[334973927,1723701043501,-180.877783,0.00013698,2]
[334973930,1723701043511,-1195.9,0.00013698,2]
[334973933,1723701043521,-180.877783,0.00013698,2]
[334973936,1723701043531,-180.877783,0.00013698,2]
[334973939,1723701043541,-180.877783,0.00013698,2]
[334973940,1723701043551,-180.877783,0.00013698,2]
[334973942,1723701043561,-180.877783,0.00013698,2]
[334973944,1723701043572,-180.877783,0.00013698,2]
[334973946,1723701043582,-180.877783,0.00013698,2]
[334973948,1723701043591,-180.877783,0.00013698,2]
[334973950,1723701043601,-180.877791,0.00013698,2]
[334973951,1723701043611,-503.67733949,0.00013698,2]
[334973953,1723701043621,-500.0,0.00013698,2]
[334973955,1723701043631,-501.0635365,0.00013698,2]
[334973957,1723701043641,-500.0,0.00013698,2]
[334973959,1723701043650,-204.2678927,0.00013698,2]
[334973961,1723701043660,-477.75734902,0.00013698,2]
[334973963,1723701043670,-500.0,0.00013698,2]
[334973965,1723701043680,-1169.94,0.00013698,2]
[334973966,1723701043690,-500.0,0.00013698,2]
[334973968,1723701043700,-500.0,0.00013698,2]
[334973970,1723701043710,-500.0,0.00013698,2]
[334973972,1723701043719,-500.0,0.00013698,2]
[334973974,1723701043730,-627.17,0.00013698,2]
[334973976,1723701043740,-500.0,0.00013698,2]
[334973977,1723701043750,-500.0,0.00013698,2]
[334973979,1723701043759,-502.18646623,0.00013698,2]
[334973981,1723701043769,-792.21,0.00013698,2]
[334973983,1723701043779,-731.67,0.00013698,2]
[334973985,1723701043789,-765.57,0.00013698,2]
[334973986,1723701043799,-633.71,0.00013698,2]
[334973988,1723701043809,-502.07903161,0.00013698,2]
[334973990,1723701043824,-500.0,0.00013698,2]
[334973992,1723701043834,-500.0,0.00013698,2]
[334973994,1723701043844,-500.0,0.00013698,2]
[334973996,1723701043854,-560.13,0.00013698,2]
[334973998,1723701043863,-500.0,0.00013698,2]
[334974000,1723701043877,-500.0,0.00013698,2]
[334974002,1723701043887,-500.0,0.00013698,2]
[334974004,1723701043896,-500.0,0.00013698,2]
[334974006,1723701043907,-500.0,0.00013698,2]
[334974008,1723701043916,-538.66612075,0.00013698,2]
[334974010,1723701043928,-515.22739989,0.00013698,2]
[334974012,1723701043938,-500.0,0.00013698,2]
[334974013,1723701043949,-502.37738544,0.00013698,2]
[334974015,1723701043959,-500.0,0.00013698,2]
[334974017,1723701043969,-500.0,0.00013698,2]
[334974019,1723701043979,-151.0,0.00013698,2]
[334974021,1723701043990,-1214.37,0.00013698,2]
[334974023,1723701044001,-151.0,0.00013698,2]
[334974025,1723701044014,-500.0,0.00013698,2]
[334974027,1723701044027,-151.0,0.00013698,2]
[334974029,1723701044037,-151.0,0.00013698,2]
[334974031,1723701044048,-281.106235,0.00013698,2]
[334974033,1723701044058,-500.0,0.00013698,2]
[334974035,1723701044070,-500.0,0.00013698,2]
[334974037,1723701044080,-213.65026019,0.00013698,2]
[334974038,1723701044092,-500.0,0.00013698,2]
[334974040,1723701044102,-571.73,0.00013698,2]
[334974042,1723701044112,-501.58536801,0.00013698,2]
[334974044,1723701044123,-500.0,0.00013698,2]
[334974046,1723701044134,-310.253762,0.00013698,2]
[334974048,1723701044144,-310.253762,0.00013698,2]
[334974050,1723701044155,-502.6903164,0.00013698,2]
[334974052,1723701044166,-500.0,0.00013698,2]
[334974054,1723701044176,-500.0,0.00013698,2]
[334974056,1723701044186,-310.253762,0.00013698,2]
[334974058,1723701044196,-310.253762,0.00013698,2]
[334974059,1723701044207,-310.253762,0.00013698,2]
[334974061,1723701044218,-310.253762,0.00013698,2]
[334974063,1723701044228,-310.253762,0.00013698,2]
[334974066,1723701044241,-310.253752,0.00013698,2]
[334974068,1723701044251,-500.0,0.00013698,2]
[334974069,1723701044261,-500.67812336,0.00013698,2]
[334974071,1723701044271,-1563.54,0.00013698,2]
[334974073,1723701044281,-501.88127732,0.00013698,2]
[334974075,1723701044291,-500.0,0.00013698,2]
[334974077,1723701044301,-500.0,0.00013698,2]
[334974078,1723701044311,-500.0,0.00013698,2]
[334974079,1723701044327,-500.0,0.00013698,2]
[334974080,1723701044337,-1186.28,0.00013698,2]
[334974081,1723701044346,-501.77102498,0.00013698,2]
[334974082,1723701044356,-502.337156,0.00013698,2]
[334974083,1723701044365,-500.0,0.00013698,2]
[334974084,1723701044374,-500.0,0.00013698,2]
[334974085,1723701044514,-758.8,0.00013698,2]
[334974086,1723701044525,-500.0,0.00013698,2]
[334974087,1723701044535,-171.89958728,0.00013698,2]
[334974088,1723701044544,-500.0,0.00013698,2]
[334974089,1723701044554,-761.72,0.00013698,2]
[334974090,1723701044564,-500.0,0.00013698,2]
[334974091,1723701044574,-500.0,0.00013698,2]
[334974092,1723701044585,-500.0,0.00013698,2]
[334974093,1723701044597,-501.67769796,0.00013698,2]
[334974094,1723701044608,-500.0,0.00013698,2]
[334974095,1723701044619,-501.85026716,0.00013698,2]
[334974096,1723701044632,-500.84697893,0.00013698,2]
[334974097,1723701044644,-628.427866,0.00013698,2]
[334974098,1723701044654,-628.427866,0.00013698,2]
[334974099,1723701044664,-628.427866,0.00013698,2]
[334974100,1723701044674,-628.427866,0.00013698,2]
[334974101,1723701044683,-628.427866,0.00013698,2]
[334974102,1723701044692,-628.427866,0.00013698,2]
[334974103,1723701044702,-628.427866,0.00013698,2]
[334974104,1723701044712,-628.427866,0.00013698,2]
[334974105,1723701044722,-500.0,0.00013698,2]
[334974106,1723701044732,-502.20119917,0.00013698,2]
[334974107,1723701044741,-628.427866,0.00013698,2]
[334974108,1723701044751,-500.0,0.00013698,2]
[334974109,1723701044761,-628.427866,0.00013698,2]
[334974110,1723701044770,-628.427866,0.00013698,2]
[334974111,1723701044780,-628.427866,0.00013698,2]
[334974112,1723701044789,-628.427866,0.00013698,2]
[334974113,1723701044799,-577.22659698,0.00013698,2]
[334974114,1723701044808,-628.427866,0.00013698,2]
[334974115,1723701044821,-1610.01,0.00013698,2]
[334974116,1723701044832,-745.13,0.00013698,2]
[334974117,1723701044843,-628.427866,0.00013698,2]
[334974118,1723701044854,-628.427866,0.00013698,2]
[334974119,1723701044864,-628.427866,0.00013698,2]
[334974120,1723701044874,-500.0,0.00013698,2]
[334974121,1723701044885,-628.427866,0.00013698,2]
[334974122,1723701044896,-628.427866,0.00013698,2]
[334974123,1723701044906,-628.427869,0.00013698,2]
[334974124,1723701044917,-728.59,0.00013698,2]
[334974125,1723701044928,-726.71,0.00013698,2]
[334974126,1723701044939,-728.57,0.00013698,2]
[334974127,1723701044950,-151.0,0.00013698,2]
[334974128,1723701044959,-500.0,0.00013698,2]
[334974129,1723701044968,-151.0,0.00013698,2]
[334974130,1723701044977,-151.0,0.00013698,2]
[334974131,1723701044986,-151.0,0.00013698,2]
[334974132,1723701044996,-506.34664601,0.00013698,2]
[334974133,1723701045005,-500.0,0.00013698,2]
[334974134,1723701045015,-500.0,0.00013698,2]
[334974135,1723701045024,-550.16,0.00013698,2]
[334974136,1723701045034,-837.63,0.00013698,2]
[334974137,1723701045043,-500.0,0.00013698,2]
[334974138,1723701045053,-500.0,0.00013698,2]
[334974139,1723701045063,-475.65945417,0.00013698,2]
[334974140,1723701045074,-151.0,0.00013698,2]
[334974141,1723701045086,-151.0,0.00013698,2]
[334974142,1723701045096,-500.0,0.00013698,2]
[334974144,1723701045107,-767.7,0.00013698,2]
[334974145,1723701045118,-500.0,0.00013698,2]
[334974146,1723701045129,-151.0,0.00013698,2]
[334974147,1723701045138,-151.0,0.00013698,2]
[334974148,1723701045147,-151.0,0.00013698,2]
[334974149,1723701045159,-151.0,0.00013698,2]
[334974150,1723701045169,-151.0,0.00013698,2]
[334974151,1723701045178,-151.0,0.00013698,2]
[334974152,1723701045187,-500.0,0.00013698,2]
[334974153,1723701045207,-500.0,0.00013698,2]
[334974154,1723701045219,-500.0,0.00013698,2]
[334974155,1723701045230,-151.0,0.00013698,2]
[334974156,1723701045241,-151.0,0.00013698,2]
[334974157,1723701045250,-155.961442,0.00013698,2]
[334974158,1723701045260,-500.0,0.00013698,2]
[334974159,1723701045270,-730.11,0.00013698,2]
[334974160,1723701045280,-500.0,0.00013698,2]
[334974161,1723701045290,-500.0,0.00013698,2]
[334974162,1723701045299,-500.0,0.00013698,2]
[334974163,1723701045309,-500.0,0.00013698,2]
[334974164,1723701045320,-1841.35,0.00013698,2]
[334974165,1723701045330,-1603.96,0.00013698,2]
[334974166,1723701045340,-500.0,0.00013698,2]
[334974167,1723701045349,-500.0,0.00013698,2]
[334974168,1723701045359,-500.0,0.00013698,2]
[334974169,1723701045369,-500.0,0.00013698,2]
[334974170,1723701045379,-500.0,0.00013698,2]
[334974171,1723701045388,-500.0,0.00013698,2]
[334974172,1723701045398,-500.0,0.00013698,2]
[334974173,1723701045408,-500.0,0.00013698,2]
[334974174,1723701045418,-500.0,0.00013698,2]
[334974175,1723701045428,-151.0,0.00013698,2]
[334974176,1723701045439,-500.0,0.00013698,2]
[334974177,1723701045449,-151.0,0.00013698,2]
[334974178,1723701045458,-500.0,0.00013698,2]
[334974179,1723701045468,-500.0,0.00013698,2]
[334974180,1723701045478,-271.19654667,0.00013698,2]
[334974181,1723701045662,-1334.13128954,0.00013698,2]
[334974182,1723701045674,-33.86300608,0.00013698,2]
[334974183,1723701045684,-228.80345333,0.00013698,2]
[334974184,1723701045694,-151.0,0.00013698,2]
[334974185,1723701045703,-2454.9,0.00013698,2]
[334974186,1723701045713,-531.54065561,0.00013698,2]
[334974187,1723701045722,-151.0,0.00013698,2]
[334974188,1723701045732,-151.0,0.00013698,2]
[334974189,1723701045742,-151.0,0.00013698,2]
[334974190,1723701045751,-500.0,0.00013698,2]
[334974191,1723701045762,-151.0,0.00013698,2]
[334974192,1723701045771,-500.0,0.00013698,2]
[334974193,1723701045780,-151.823107,0.00013698,2]
[334974194,1723701045790,-500.0,0.00013698,2]
[334974195,1723701045799,-500.0,0.00013698,2]
[334974196,1723701045809,-500.0,0.00013698,2]
[334974197,1723701045819,-500.0,0.00013698,2]
[334974198,1723701045829,-1685.86,0.00013698,2]
[334974199,1723701045838,-500.0,0.00013698,2]
[334974200,1723701045848,-501.39409148,0.00013698,2]
[334974201,1723701045857,-500.0,0.00013698,2]
[334974202,1723701045866,-500.0,0.00013698,2]
[334974203,1723701045876,-944.01,0.00013698,2]
[334974204,1723701045886,-503.20340676,0.00013698,2]
[334974205,1723701045895,-500.0,0.00013698,2]
[334974206,1723701045905,-500.0,0.00013698,2]
[334974207,1723701045915,-500.0,0.00013698,2]
[334974208,1723701045925,-1781.37,0.00013698,2]
[334974209,1723701045935,-151.0,0.00013698,2]
[334974210,1723701045946,-526.98,0.00013698,2]
[334974211,1723701045956,-151.0,0.00013698,2]
[334974212,1723701045966,-500.0,0.00013698,2]
[334974213,1723701045975,-504.06897648,0.00013698,2]
[334974214,1723701045985,-151.0,0.00013698,2]
[334974215,1723701045995,-500.0,0.00013698,2]
[334974216,1723701046006,-151.681406,0.00013698,2]
[334974217,1723701046019,-500.0,0.00013698,2]
[334974218,1723701046030,-551.6,0.00013698,2]
[334974219,1723701046039,-151.0,0.00013698,2]
[334974220,1723701046049,-729.02,0.00013698,2]
[334974221,1723701046059,-500.94457135,0.00013698,2]
[334974222,1723701046070,-500.0,0.00013698,2]
[334974223,1723701046081,-503.76344581,0.00013698,2]
[334974224,1723701046092,-500.0,0.00013698,2]
[334974225,1723701046101,-504.50983386,0.00013698,2]
[334974226,1723701046111,-500.0,0.00013698,2]
[334974227,1723701046120,-500.0,0.00013698,2]
[334974228,1723701046130,-500.0,0.00013698,2]
[334974229,1723701046140,-500.0,0.00013698,2]
[334974230,1723701046149,-502.97006443,0.00013698,2]
[334974231,1723701046160,-500.0,0.00013698,2]
[334974232,1723701046170,-500.0,0.00013698,2]
[334974233,1723701046180,-500.0,0.00013698,2]
[334974234,1723701046190,-500.0,0.00013698,2]
[334974235,1723701046199,-500.0,0.00013698,2]
[334974236,1723701046210,-500.0,0.00013698,2]
[334974237,1723701046219,-1034.07,0.00013698,2]
[334974238,1723701046229,-699.32,0.00013698,2]
[334974239,1723701046239,-500.0,0.00013698,2]
[334974240,1723701046249,-502.82621963,0.00013698,2]
[334974241,1723701046258,-249.02490568,0.00013698,2]
[334974242,1723701046268,-6674.44,0.00013698,2]
[334974243,1723701046277,-634.37,0.00013698,2]
[334974244,1723701046287,-496.41965757,0.00013698,2]
[334974245,1723701046296,-500.31,0.00013698,2]
[334974246,1723701046305,-500.0,0.00013698,2]
[334974247,1723701046315,-500.0,0.00013698,2]
[334974248,1723701046324,-500.0,0.00013698,2]
[334974249,1723701046334,-507.70579056,0.00013698,2]
[334974250,1723701046343,-500.0,0.00013698,2]
[334974251,1723701046352,-502.02432684,0.00013698,2]
[334974252,1723701046362,-500.0,0.00013698,2]
[334974253,1723701046371,-1791.2,0.00013698,2]
[334974254,1723701046380,-548.49866004,0.00013698,2]
[334974256,1723701046401,-100.85454038,0.00013698,2]
[334974258,1723701046411,-500.0,0.00013698,2]
[334974260,1723701046421,-506.27434918,0.00013698,2]
[334974261,1723701046430,-500.0,0.00013698,2]
[334974262,1723701046440,-500.87832019,0.00013698,2]
[334974263,1723701046449,-500.0,0.00013698,2]
[334974264,1723701046459,-304.74423243,0.00013698,2]
[334974265,1723701046865,-195.25576757,0.00013698,2]
[334974266,1723701046875,-502.84207717,0.00013698,2]
[334974267,1723701046885,-787.28,0.00013698,2]
[334974268,1723701046895,-500.0,0.00013698,2]
[334974269,1723701046904,-500.80655048,0.00013698,2]
[334974270,1723701046914,-1783.36,0.00013698,2]
[334974271,1723701046923,-324.73192793,0.00013698,2]
[334974272,1723701048144,-175.26807207,0.00013698,2]
[334974273,1723701048153,-500.0,0.00013698,2]
[334974274,1723701048163,-620.79638147,0.00013698,2]
[334974275,1723701048173,-500.0,0.00013698,2]
[334974276,1723701048182,-599.61,0.00013698,2]
[334974277,1723701048191,-237.280659,0.00013698,2]
[334974278,1723701048201,-237.280659,0.00013698,2]
[334974279,1723701048211,-237.280659,0.00013698,2]
[334974280,1723701048220,-237.280659,0.00013698,2]
[334974281,1723701048230,-237.280659,0.00013698,2]
[334974282,1723701048239,-237.280659,0.00013698,2]
[334974283,1723701048249,-237.280659,0.00013698,2]
[334974284,1723701048258,-237.280659,0.00013698,2]
[334974285,1723701048269,-237.280659,0.00013698,2]
[334974286,1723701048278,-823.48255853,0.00013698,2]
[334974289,1723701145422,153.69,0.00018,31]
[334974290,1723701145489,153.69,0.00018,31]
[334974291,1723701145595,153.69,0.00018,31]
[334974292,1723701145669,153.69,0.00018,31]
[334974294,1723701428685,10000.0,0.00013,13]
[334974295,1723701457039,1000.0,0.00014,14]
[334974296,1723701478058,1000.0,0.00027,120]
[334974297,1723701502771,1000.0,0.00023,49]
[334974300,1723701748314,153.7,0.00018,31]
[334974301,1723701748436,153.7,0.00018,31]
[334974302,1723701748491,153.7,0.00018,31]
[334974303,1723701748573,153.7,0.00018,31]
[334974306,1723701894281,10000.0,0.00016,10]
[334974320,1723702231772,-300.0,0.000124,2]
[334974321,1723702231782,-13892.6049981,0.00012401,2]
[334974322,1723702231792,-1562.72058678,0.00012516,2]
[334974323,1723702231801,-213.673202,0.00012986,2]
[334974324,1723702231813,-5324.62888985,0.00013455,2]
[334974325,1723702231825,-285.09196698,0.00013598,2]
[334974326,1723702231836,-411.01287246,0.00013599,2]
[334974327,1723702231847,-308.52761478,0.000136,2]
[334974328,1723702231857,-285.09196697,0.00013667,2]
[334974329,1723702231866,-150.34447071,0.00013676,2]
[334974330,1723702231877,-12744.22036082,0.00013688,2]
[334974331,1723702231890,-5568.73001376,0.00013688,2]
[334974353,1723702238549,-460.04462709,0.00013588,2]
[334974354,1723702238561,-2877.76380813,0.00013588,2]
[334974355,1723702238573,-3198.68690931,0.00013688,2]
[334974376,1723702242628,-1164.96429411,0.00013688,2]
[334974377,1723702242638,-2519.62239755,0.00013689,2]
[334974378,1723702242648,-2519.62239755,0.00013689,2]
[334974379,1723702242657,-2519.62239755,0.0001369,2]
[334974380,1723702242668,-150.0,0.00013694,2]
[334974381,1723702242678,-521.0,0.00013694,2]
[334974382,1723702242688,-1413.0,0.00013694,2]
[334974383,1723702242698,-1523.33138544,0.00013697,2]
[334974384,1723702242708,-3513.73013066,0.00013697,2]
[334974385,1723702242718,-5231.99002686,0.00013698,2]
[334974386,1723702242730,-683.99714781,0.00013698,2]
[334974387,1723702242741,-502.37384027,0.00013698,2]
[334974388,1723702242751,-500.0,0.00013698,2]
[334974389,1723702242762,-263.55897443,0.00013698,2]
[334974390,1723702242772,-761.94,0.00013698,2]
[334974391,1723702242795,-500.0,0.00013698,2]
[334974392,1723702242806,-695.86,0.00013698,2]
[334974393,1723702242816,-500.0,0.00013698,2]
[334974394,1723702242825,-768.72,0.00013698,2]
[334974395,1723702242835,-500.0,0.00013698,2]
[334974396,1723702242844,-500.0,0.00013698,2]
[334974397,1723702242854,-500.0,0.00013698,2]
[334974398,1723702242863,-500.0,0.00013698,2]
[334974399,1723702242873,-500.0,0.00013698,2]
[334974400,1723702242883,-543.39,0.00013698,2]
[334974401,1723702242892,-631.76088597,0.00013698,2]
[334974402,1723702242903,-500.0,0.00013698,2]
[334974403,1723702242914,-500.0,0.00013698,2]
[334974404,1723702242926,-532.07,0.00013698,2]
[334974405,1723702242936,-500.0,0.00013698,2]
[334974406,1723702242947,-500.0,0.00013698,2]